fUST/lending_fUST_20240710
["ID","MTS","AMOUNT","RATE_DAILY","PERIOD"]
[331646980,1720600263903,-507.97189144,0.00038521,30]
[331646981,1720600263914,-500.0,0.00038521,30]
[331646982,1720600263924,-252.48721195,0.00038521,30]
[331646983,1720600263934,-506.1629427,0.00038521,30]
[331646984,1720600263945,-499.50421862,0.00038521,30]
[331646985,1720600263954,-500.0,0.00038521,30]
[331646986,1720600263964,-516.78377198,0.00038521,30]
[331646987,1720600263974,-833.12,0.00038521,30]
[331646988,1720600263984,-833.12,0.00038521,30]
[331646989,1720600263993,-833.12,0.00038521,30]
[331646990,1720600264003,-833.12,0.00038521,30]
[331646991,1720600264012,-517.06837477,0.00038521,30]
[331646992,1720600264021,-833.12,0.00038521,30]
[331646993,1720600264031,-833.12,0.00038521,30]
[331646994,1720600264040,-833.12,0.00038521,30]
[331646995,1720600264049,-833.12,0.00038521,30]
[331646996,1720600264059,-233.61385427,0.00038521,30]
[331646997,1720600264069,-833.12,0.00038521,30]
[331646998,1720600264079,-833.12,0.00038521,30]
[331646999,1720600264088,-500.0,0.00038521,30]
[331647000,1720600264098,-500.0,0.00038521,30]
[331647001,1720600264107,-833.12,0.00038521,30]
[331647002,1720600264117,-512.99876126,0.00038521,30]
[331647003,1720600264126,-833.12,0.00038521,30]
[331647004,1720600264136,-500.0,0.00038521,30]
[331647005,1720600264145,-833.12,0.00038521,30]
[331647006,1720600264154,-500.0,0.00038521,30]
[331647007,1720600264165,-833.12,0.00038521,30]
[331647008,1720600264174,-500.0,0.00038521,30]
[331647009,1720600264183,-833.12,0.00038521,30]
[331647010,1720600264191,-500.0,0.00038521,30]
[331647011,1720600264200,-833.12,0.00038521,30]
[331647012,1720600264209,-489.21555359,0.00038521,30]
[331647013,1720600264219,-833.12,0.00038521,30]
[331647014,1720600264228,-833.12,0.00038521,30]
[331647015,1720600264237,-833.12,0.00038521,30]
[331647016,1720600264247,-517.51895973,0.00038521,30]
[331647017,1720600264256,-833.12,0.00038521,30]
[331647018,1720600264266,-833.12,0.00038521,30]
[331647019,1720600264275,-833.12,0.00038521,30]
[331647020,1720600264285,-833.12,0.00038521,30]
[331647021,1720600264295,-833.25680583,0.00038521,30]
[331647022,1720600264304,-500.0,0.00038521,30]
[331647023,1720600264314,-500.0,0.00038521,30]
[331647024,1720600264323,-500.0,0.00038521,30]
[331647025,1720600264332,-500.0,0.00038521,30]
[331647026,1720600264341,-500.0,0.00038521,30]
[331647027,1720600264350,-500.0,0.00038521,30]
[331647028,1720600264359,-470.25392936,0.00038521,30]
[331647029,1720600264369,-500.0,0.00038521,30]
[331647030,1720600264378,-505.48902841,0.00038521,30]
[331647031,1720600264387,-500.0,0.00038521,30]
[331647032,1720600264396,-500.0,0.00038521,30]
[331647033,1720600264406,-500.0,0.00038521,30]
[331647034,1720600264418,-500.0,0.00038521,30]
[331647035,1720600264428,-517.92219141,0.00038521,30]
[331647036,1720600264438,-178.70770246,0.00038521,30]
[331647037,1720600264448,-500.0,0.00038521,30]
[331647038,1720600264457,-500.0,0.00038521,30]
[331647039,1720600264466,-541.98035447,0.00038521,30]
[331647040,1720600264475,-341.87628602,0.00038521,30]
[331647041,1720600264485,-229.4909305,0.00038521,30]
[331647042,1720600264494,-500.0,0.00038521,30]
[331647043,1720600264503,-500.0,0.00038521,30]
[331647044,1720600264513,-150.64013517,0.00038521,30]
[331647045,1720600264522,-500.0,0.00038521,30]
[331647046,1720600264533,-500.0,0.00038521,30]
[331647047,1720600264543,-500.0,0.00038521,30]
[331647048,1720600264625,-500.0,0.00038521,30]
[331647049,1720600264634,-500.0,0.00038521,30]
[331647050,1720600264643,-587.2538025,0.00038521,30]
[331647051,1720600264652,-500.0,0.00038521,30]
[331647052,1720600264664,-500.0,0.00038521,30]
[331647053,1720600264673,-641.87404974,0.00038521,30]
[331647054,1720600264683,-511.6843757,0.00038521,30]
[331647055,1720600264693,-500.0,0.00038521,30]
[331647056,1720600264703,-509.45557623,0.00038521,30]
[331647057,1720600264712,-500.0,0.00038521,30]
[331647058,1720600264722,-500.0,0.00038521,30]
[331647059,1720600264732,-482.67878714,0.00038521,30]
[331647060,1720600264742,-825.86,0.00038521,30]
[331647061,1720600264752,-825.86,0.00038521,30]
[331647062,1720600264762,-825.86,0.00038521,30]
[331647063,1720600264772,-825.86,0.00038521,30]
[331647064,1720600264781,-825.86,0.00038521,30]
[331647065,1720600264791,-825.86,0.00038521,30]
[331647066,1720600264803,-825.86,0.00038521,30]
[331647067,1720600264813,-825.86,0.00038521,30]
[331647068,1720600264823,-500.0,0.00038521,30]
[331647069,1720600264833,-825.86,0.00038521,30]
[331647070,1720600264843,-500.0,0.00038521,30]
[331647071,1720600264854,-500.0,0.00038521,30]
[331647072,1720600264864,-825.86,0.00038521,30]
[331647073,1720600264874,-825.86,0.00038521,30]
[331647074,1720600264883,-500.0,0.00038521,30]
[331647075,1720600264893,-825.86,0.00038521,30]
[331647076,1720600264902,-500.0,0.00038521,30]
[331647077,1720600264912,-825.86,0.00038521,30]
[331647078,1720600264922,-825.86,0.00038521,30]
[331647079,1720600264932,-825.86,0.00038521,30]
[331647080,1720600264943,-825.86,0.00038521,30]
[331647081,1720600264954,-825.86,0.00038521,30]
[331647082,1720600264964,-825.86,0.00038521,30]
[331647083,1720600264973,-825.86,0.00038521,30]
[331647084,1720600264983,-386.23354321,0.00038521,30]
[331647085,1720600264992,-825.86,0.00038521,30]
[331647086,1720600265002,-825.86,0.00038521,30]
[331647087,1720600265011,-825.86,0.00038521,30]
[331647088,1720600265020,-825.93779168,0.00038521,30]
[331647089,1720600265030,-500.0,0.00038521,30]
[331647090,1720600265039,-500.0,0.00038521,30]
[331647091,1720600265049,-500.0,0.00038521,30]
[331647092,1720600265058,-500.0,0.00038521,30]
[331647093,1720600265068,-270.49010814,0.00038521,30]
[331647094,1720600265077,-500.0,0.00038521,30]
[331647095,1720600265087,-1108.02,0.00038521,30]
[331647096,1720600265097,-500.0,0.00038521,30]
[331647097,1720600265107,-1108.02,0.00038521,30]
[331647098,1720600265117,-500.0,0.00038521,30]
[331647099,1720600265127,-500.0,0.00038521,30]
[331647100,1720600265136,-500.0,0.00038521,30]
[331647101,1720600265146,-1108.02,0.00038521,30]
[331647102,1720600265156,-1108.02,0.00038521,30]
[331647103,1720600265168,-227.36340961,0.00038521,30]
[331647104,1720600265178,-521.04514761,0.00038521,30]
[331647105,1720600265187,-500.0,0.00038521,30]
[331647106,1720600265197,-1108.02,0.00038521,30]
[331647107,1720600265207,-500.0,0.00038521,30]
[331647108,1720600265217,-1108.02,0.00038521,30]
[331647109,1720600265226,-500.0,0.00038521,30]
[331647110,1720600265236,-1108.02,0.00038521,30]
[331647111,1720600265246,-500.0,0.00038521,30]
[331647112,1720600265256,-1108.02,0.00038521,30]
[331647113,1720600265265,-500.0,0.00038521,30]
[331647114,1720600265275,-1108.02,0.00038521,30]
[331647115,1720600265284,-500.0,0.00038521,30]
[331647116,1720600265293,-1108.02,0.00038521,30]
[331647117,1720600265303,-500.0,0.00038521,30]
[331647118,1720600265313,-1108.02,0.00038521,30]
[331647119,1720600265323,-348.09340445,0.00038521,30]
[331647120,1720600265332,-1108.02,0.00038521,30]
[331647121,1720600265341,-500.0,0.00038521,30]
[331647122,1720600265350,-502.72218905,0.00038521,30]
[331647123,1720600265360,-1108.02,0.00038521,30]
[331647124,1720600265369,-1108.02,0.00038521,30]
[331647125,1720600265378,-1108.02,0.00038521,30]
[331647126,1720600265387,-1108.02,0.00038521,30]
[331647127,1720600265396,-500.0,0.00038521,30]
[331647128,1720600265405,-234.29317731,0.00038521,30]
[331647129,1720600265416,-1108.02,0.00038521,30]
[331647130,1720600265425,-500.0,0.00038521,30]
[331647131,1720600265435,-1108.02,0.00038521,30]
[331647132,1720600265444,-511.47573746,0.00038521,30]
[331647133,1720600265454,-1108.02,0.00038521,30]
[331647134,1720600265463,-1108.02,0.00038521,30]
[331647135,1720600265473,-1108.02,0.00038521,30]
[331647136,1720600265483,-1108.02,0.00038521,30]
[331647137,1720600265492,-1108.02,0.00038521,30]
[331647138,1720600265501,-1108.05828577,0.00038521,30]
[331647139,1720600265511,-519.3207916,0.00038521,30]
[331647140,1720600265520,-500.0,0.00038521,30]
[331647141,1720600265529,-500.0,0.00038521,30]
[331647142,1720600265538,-500.0,0.00038521,30]
[331647143,1720600265548,-500.0,0.00038521,30]
[331647144,1720600265557,-500.0,0.00038521,30]
[331647145,1720600265566,-631.13209457,0.00038521,30]
[331647146,1720600265576,-596.7934752,0.00038521,30]
[331647148,1720600355448,844.60693281,0.00014999,2]
[331647149,1720600362428,154.69833824,0.00014999,2]
[331647150,1720600366459,403.6290569,0.00014999,2]
[331647151,1720600374062,322.57946285,0.00014999,2]
[331647152,1720600375560,583.03547759,0.00014999,2]
[331647153,1720600380808,909.07625877,0.00014999,2]
[331647154,1720600381233,154.69833824,0.00014999,2]
[331647155,1720600386506,334.02794687,0.00014999,2]
[331647156,1720600387945,492.75452642,0.00014999,2]
[331647157,1720600388236,277.3778134,0.00015252,2]
[331647158,1720600388270,6986.6266304,0.00014998,2]
[331647159,1720600390698,8091.1879106,0.00014998,2]
[331647160,1720600393054,229.7763763,0.00014999,2]
[331647161,1720600394577,286.60750057,0.00014999,2]
[331647162,1720600394851,1636.25072622,0.00014999,2]
[331647163,1720600395801,909.07625877,0.00014999,2]
[331647164,1720600396858,285.89652124,0.00014999,2]
[331647165,1720600398680,208.78770674,0.00014999,2]
[331647167,1720600406364,1410.5136947,0.00015249,2]
[331647168,1720600406430,298.47477579,0.00014999,2]
[331647171,1720600415592,2103.07500102,0.00014998,2]
[331647172,1720600420506,195.91834676,0.00014999,2]
[331647173,1720600422681,240.12803383,0.00014999,2]
[331647174,1720600424293,213.08929994,0.00014998,2]
[331647176,1720600439272,213.08929994,0.00014998,2]
[331647177,1720600447375,2120.26427898,0.00014999,2]
[331647179,1720600450548,195.91834676,0.00014999,2]
[331647187,1720600460919,604.6189009,0.00015249,2]
[331647200,1720600481594,4699.77945018,0.00014999,2]
[331647211,1720600508939,558.25944239,0.00014999,2]
[331647212,1720600524099,2103.07500102,0.00014999,2]
[331647213,1720600529257,154.69833824,0.00014999,2]
[331647214,1720600533486,267.95453576,0.00014999,2]
[331647215,1720600535576,806.92285958,0.00014999,2]
[331647216,1720600536279,4104.53189242,0.00014999,2]
[331647217,1720600540247,154.69833824,0.00014999,2]
[331647218,1720600544678,208.78770674,0.00014999,2]
[331647219,1720600544935,745.573656,0.00015224,2]
[331647220,1720600558267,213.08929994,0.00014999,2]
[331647221,1720600559870,183.61390587,0.00014999,2]
[331647225,1720600581810,909.07625877,0.00014999,2]
[331647226,1720600583597,639.78237564,0.00015224,2]
[331647227,1720600584109,287.51223328,0.00015224,2]
[331647228,1720600584675,330.50043213,0.00014999,2]
[331647230,1720600591401,154.69833824,0.00015224,2]
[331647231,1720600606400,154.69833824,0.00015224,2]
[331647232,1720600620775,10003.85448787,0.000125,2]
[331647233,1720600626104,1447.81829389,0.00015224,2]
[331647234,1720600632244,4842.77705259,0.000139,2]
[331647235,1720600641367,6772.99323233,0.00015,2]
[331647236,1720600643260,29292.00289435,0.00014,2]
[331647237,1720600644027,25637.27684746,0.0001,2]
[331647238,1720600649276,241.31033964,0.00015224,2]
[331647241,1720600654526,285.76262512,0.00014999,2]
[331647242,1720600677225,-1000.0,0.00016244,10]
[331647243,1720600677247,-1000.0,0.00016244,10]
[331647244,1720600686495,287.51223328,0.00015224,2]
[331647245,1720600688460,-240.74527328,0.00016254,10]
[331647246,1720600726264,232.73566576,0.00014999,2]
[331647247,1720600729200,168.67444377,0.00014999,2]
[331647248,1720600729340,909.07625877,0.00014999,2]
[331647249,1720600795494,-300.0,0.00016054,2]
[331647250,1720600795517,-24700.0,0.00016055,2]
[331647255,1720600888920,1221.2098948,0.00015346,2]
[331647257,1720600969133,384.92441816,0.00015346,2]
[331647258,1720600969414,293.91603992,0.00015346,2]
[331647259,1720600970339,299.21946867,0.00014999,2]
[331647260,1720600973287,239.0503428,0.00014999,2]
[331647261,1720600978579,163.75264255,0.00015346,2]
[331647262,1720600985964,492.75452642,0.00014999,2]
[331647263,1720601000587,154.69833824,0.00014999,2]
[331647264,1720601001125,3296.91602132,0.00015346,2]
[331647265,1720601002805,181.8878663,0.00015346,2]
[331647267,1720601029696,4710.72024946,0.00014999,2]
[331647268,1720601047606,2833.91780134,0.00015,2]
[331647269,1720601055688,309.350365,0.00014999,2]
[331647270,1720601061452,154.99194137,0.00014999,2]
[331647271,1720601067925,309.350365,0.00014999,2]
[331647272,1720601076123,154.99075164,0.00014999,2]
[331647273,1720601080311,200.01501858,0.00014999,2]
[331647274,1720601081635,169.03338578,0.00014999,2]
[331647275,1720601086104,175.91685856,0.00014999,2]
[331647276,1720601088298,155.06527205,0.00014999,2]
[331647277,1720601088330,154.69833824,0.00014999,2]
[331647278,1720601089088,160.0,0.00014999,2]
[331647279,1720601089879,542.88077558,0.00014999,2]
[331647280,1720601090761,189.29518759,0.00014999,2]
[331647281,1720601093110,309.3658001,0.00014999,2]
[331647282,1720601093521,256.81082466,0.00014999,2]
[331647283,1720601095425,154.79103211,0.00014999,2]
[331647284,1720601097073,1068.84216156,0.00014999,2]
[331647285,1720601110393,268.12144214,0.00014999,2]
[331647286,1720601121178,6266.38582075,0.00014998,2]
[331647287,1720601129934,169.82584625,0.00014999,2]
[331647288,1720601133358,324.40332009,0.00014999,2]
[331647289,1720601143756,154.79103211,0.00014999,2]
[331647290,1720601150683,526.22705313,0.00014999,2]
[331647291,1720601170102,202.72263631,0.00014999,2]
[331647292,1720601177909,212.02110912,0.00014999,2]
[331647293,1720601189753,372.786828,0.00015229,2]
[331647295,1720601220226,566.82686133,0.00014999,2]
[331647296,1720601232075,530.50776108,0.00014999,2]
[331647297,1720601249984,-492.4570606,0.00015995,2]
[331647298,1720601250008,-200.0,0.00016055,2]
[331647299,1720601250031,-300.0,0.00016253,2]
[331647300,1720601250054,-300.0,0.00016253,2]
[331647301,1720601250076,-55959.68879666,0.00016254,2]
[331647302,1720601272308,155.47300871,0.00014999,2]
[331647303,1720601280304,6266.38582075,0.00014998,2]
[331647304,1720601309237,885.90879381,0.00014999,2]
[331647305,1720601347715,526.22705313,0.00014999,2]
[331647306,1720601358872,2523.50182415,0.00014999,2]
[331647307,1720601360028,1431.57276298,0.00014999,2]
[331647308,1720601386784,154.87576558,0.00014999,2]
[331647309,1720601397061,2420.30621376,0.00015,2]
[331647310,1720601400502,155.29293887,0.00014999,2]
[331647311,1720601400606,777.60346913,0.00014999,2]
[331647312,1720601402731,202.22767195,0.00014999,2]
[331647313,1720601403378,908.81436662,0.00014999,2]
[331647314,1720601407940,207.45524428,0.00014999,2]
[331647315,1720601408131,309.3349299,0.00014999,2]
[331647316,1720601408892,318.82736005,0.00014999,2]
[331647317,1720601409806,154.69833824,0.00014999,2]
[331647318,1720601411766,548.86451441,0.00014999,2]
[331647319,1720601411824,155.35500503,0.00014999,2]
[331647320,1720601413224,3081.53440893,0.00014999,2]
[331647321,1720601414086,201.00821583,0.00014999,2]
[331647322,1720601414117,309.3349299,0.00014999,2]
[331647323,1720601419868,165.17058968,0.00014999,2]
[331647324,1720601421471,1104.60661146,0.00015,2]
[331647325,1720601422535,309.3349299,0.00014999,2]
[331647326,1720601425571,154.88380931,0.00014999,2]
[331647327,1720601425896,2093.73523972,0.00014999,2]
[331647328,1720601426248,567.00490638,0.00014999,2]
[331647329,1720601426852,523.52182497,0.00014999,2]
[331647330,1720601427274,286.97734619,0.00014999,2]
[331647331,1720601428265,1124.07729006,0.00014999,2]
[331647332,1720601429959,175.89790425,0.00014999,2]
[331647333,1720601430186,6266.38582075,0.00014998,2]
[331647334,1720601431904,261.61722225,0.00015,2]
[331647345,1720601433336,518.1114155,0.00014999,2]
[331647349,1720601433374,155.02402872,0.00014999,2]
[331647393,1720601434875,267.71924001,0.00014999,2]
[331647394,1720601435770,309.3349299,0.00014999,2]
[331647395,1720601436180,691.33834976,0.00014999,2]
[331647396,1720601436542,725.50158015,0.00014999,2]
[331647421,1720601437745,478.36783546,0.00014999,2]
[331647428,1720601438135,309.3658001,0.00014999,2]
[331647429,1720601438195,-491.38620172,0.00015998,2]
[331647430,1720601438206,-1292.4570606,0.00016254,2]
[331647431,1720601438217,-300.0,0.00016254,2]
[331647432,1720601438227,-226.75717181,0.00016254,2]
[331647433,1720601438238,-500.0,0.00016254,2]
[331647434,1720601438249,-252.35104302,0.00016254,2]
[331647436,1720601438259,-500.0,0.00016254,2]
[331647437,1720601438269,-500.0,0.00016254,2]
[331647438,1720601438280,-500.0,0.00016254,2]
[331647439,1720601438290,-488.46895295,0.00016254,2]
[331647440,1720601438300,-500.0,0.00016254,2]
[331647441,1720601438311,-17261.11502567,0.00016255,2]
[331647442,1720601438321,-156.27428673,0.00016255,2]
[331647443,1720601438332,-34951.80135124,0.00016255,2]
[331647444,1720601438342,-154.69833824,0.00016255,2]
[331647445,1720601438352,-42254.51324581,0.00016255,2]
[331647446,1720601438362,-374.63942513,0.00016255,2]
[331647447,1720601438372,-804.69654268,0.00016255,2]
[331647448,1720601438382,-165.14297844,0.00016255,2]
[331647449,1720601438392,-156.80969809,0.00016255,2]
[331647450,1720601438402,-42254.51324581,0.00016255,2]
[331647451,1720601438413,-885.90879381,0.00016255,2]
[331647452,1720601438423,-160.03609292,0.00016255,2]
[331647453,1720601438433,-276.69913264,0.00016801,2]
[331647454,1720601438443,-1982.7535196,0.000176,2]
[331647455,1720601438454,-420.0,0.00017879,2]
[331647456,1720601438464,-251.58970002,0.0001818,2]
[331647457,1720601438474,-287.51223328,0.0001818,2]
[331647458,1720601438484,-526.22705313,0.0001818,2]
[331647459,1720601438495,-1400.72762355,0.0001818,2]
[331647460,1720601438505,-1878.41304187,0.000189,2]
[331647461,1720601438515,-540.60725641,0.00019,3]
[331647462,1720601438524,-250.0,0.00019041,2]
[331647463,1720601438534,-730.37363214,0.00019065,2]
[331647464,1720601438544,-162.072998,0.00019178,2]
[331647465,1720601438553,-162.009859,0.00019178,2]
[331647466,1720601438563,-174.19152608,0.00019333,2]
[331647467,1720601438573,-208.59398018,0.00019333,2]
[331647468,1720601438583,-200.0,0.00019333,2]
[331647469,1720601438593,-156.0,0.00019667,2]
[331647470,1720601438602,-8046.47152351,0.0002,2]
[331647471,1720601438612,-1065.81451026,0.0002,2]
[331647472,1720601438622,-225.75818488,0.0002,2]
[331647473,1720601438631,-302.42545213,0.0002,2]
[331647474,1720601438641,-302.42545213,0.000202,2]
[331647475,1720601438652,-302.42545213,0.000204,2]
[331647476,1720601438662,-302.42545213,0.000206,2]
[331647477,1720601438673,-400.0,0.00020703,2]
[331647478,1720601438683,-302.42545213,0.000208,2]
[331647479,1720601438693,-414.8446422,0.00021,4]
[331647480,1720601438703,-582.078451,0.00021096,2]
[331647481,1720601438712,-730.37363212,0.00021271,2]
[331647482,1720601438722,-166.666666,0.00021918,2]
[331647483,1720601438733,-1000.0,0.00022,22]
[331647484,1720601438742,-989.98508742,0.0002217,2]
[331647485,1720601438754,-166.666666,0.00022431,2]
[331647486,1720601438764,-600.0,0.0002248,2]
[331647487,1720601438773,-372.786828,0.00022844,2]
[331647488,1720601438783,-166.666666,0.00022944,2]
[331647489,1720601438794,-6547.81825355,0.00023,2]
[331647490,1720601438804,-166.666666,0.00023456,2]
[331647491,1720601438813,-730.37363212,0.00023478,2]
[331647492,1720601438823,-1878.41304187,0.000239,2]
[331647493,1720601438833,-166.666666,0.00023969,2]
[331647494,1720601438843,-1000.0,0.00024,9]
[331647495,1720601438853,-1009.47271969,0.00024368,2]
[331647496,1720601438863,-750.0,0.00024453,2]
[331647497,1720601438873,-166.666666,0.00024482,2]
[331647498,1720601438883,-155.12161058,0.00025,2]
[331647499,1720601438892,-7591.98773101,0.00025491,5]
[331647500,1720601438902,-148972.281549,0.00025491,3]
[331647501,1720601438912,-52142.01242753,0.00025501,2]
[331647502,1720601438923,-730.37363212,0.00025684,2]
[331647503,1720601438935,-5211.42806786,0.00025869,2]
[331647504,1720601438946,-3000.0,0.000265,2]
[331647505,1720601438957,-3000.0,0.0002651,2]
[331647506,1720601438968,-479.5003927,0.00026519,2]
[331647507,1720601438979,-175.87585911,0.00026519,2]
[331647508,1720601438989,-500.0,0.00026519,2]
[331647509,1720601439001,-500.0,0.00026519,2]
[331647510,1720601439011,-500.0,0.00026519,2]
[331647511,1720601439022,-638.71016335,0.00026519,2]
[331647512,1720601439032,-500.0,0.00026519,2]
[331647513,1720601439042,-500.0,0.00026519,2]
[331647514,1720601439052,-224.57078177,0.00026519,2]
[331647515,1720601439063,-500.0,0.00026519,2]
[331647516,1720601439072,-300.0,0.00026519,2]
[331647517,1720601439083,-3000.0,0.0002652,2]
[331647518,1720601439094,-74486.1407745,0.0002652,3]
[331647519,1720601439104,-3000.0,0.0002653,2]
[331647520,1720601439114,-3000.0,0.0002654,2]
[331647521,1720601439124,-3000.0,0.0002655,2]
[331647522,1720601439135,-4356.926484,0.0002656,2]
[331647523,1720601439145,-18957.9585867,0.00027,4]
[331647524,1720601439155,-582.078451,0.00027195,2]
[331647525,1720601439165,-74486.1407745,0.00027387,3]
[331647526,1720601439298,-500.0,0.00027397,2]
[331647527,1720601439311,-500.0,0.00027397,2]
[331647528,1720601439322,-500.0,0.00027397,2]
[331647529,1720601439334,-500.0,0.00027397,2]
[331647530,1720601439344,-500.0,0.00027397,2]
[331647531,1720601439355,-500.0,0.00027397,2]
[331647532,1720601439365,-500.0,0.00027397,2]
[331647533,1720601439375,-500.0,0.00027397,2]
[331647534,1720601439385,-500.0,0.00027397,2]
[331647535,1720601439395,-500.0,0.00027397,2]
[331647536,1720601439405,-500.0,0.00027397,2]
[331647537,1720601439415,-500.0,0.00027397,2]
[331647538,1720601439424,-500.0,0.00027397,2]
[331647539,1720601439435,-500.0,0.00027397,2]
[331647540,1720601439446,-500.0,0.00027397,2]
[331647541,1720601439456,-175.41119278,0.000274,2]
[331647542,1720601439466,-74486.1407745,0.0002749,3]
[331647543,1720601439477,-43664.05653873,0.000275,2]
[331647544,1720601439488,-730.37363212,0.0002789,2]
[331647545,1720601439498,-1343.96727085,0.000279,2]
[331647546,1720601439508,-25164.56658619,0.0002799,2]
[331647547,1720601439519,-1000.0,0.00028,28]
[331647548,1720601439529,-151.07303259,0.00028081,2]
[331647549,1720601439540,-30000.0,0.00028082,2]
[331647550,1720601439550,-1009.47271969,0.00028474,2]
[331647551,1720601439560,-798.78016452,0.000285,2]
[331647552,1720601439570,-189993.14075565,0.0002877,2]
[331647553,1720601439580,-1878.41304187,0.000289,2]
[331647554,1720601439589,-849.45020334,0.00029,2]
[331647555,1720601439599,-150.0,0.00029081,2]
[331647557,1720601439608,-248.95340007,0.000298,120]
[331647558,1720601439618,-643.66349447,0.0003,4]
[331647559,1720601439636,-170.47875529,0.0003,4]
[331647560,1720601439646,-471.68236775,0.0003,4]
[331647561,1720601439656,-753.06028908,0.0003,2]
[331647562,1720601439666,-210.0,0.0003,2]
[331647563,1720601439676,-360.96153227,0.00032272,4]
[331647564,1720601439686,-1009.47271969,0.00032581,2]
[331647565,1720601439696,-150.0,0.00032877,2]
[331647566,1720601439706,-1000.0,0.00033,33]
[331647567,1720601439716,-582.078451,0.00033295,2]
[331647568,1720601439726,-288462.25594112,0.000338,2]
[331647570,1720601439787,154.69833824,0.00014999,2]
[331647604,1720601441542,-164284.05674137,0.000338,2]
[331647622,1720601443090,154.69833824,0.00014999,2]
[331647629,1720601443221,3081.53440893,0.00014999,2]
[331647657,1720601538183,-492.31639989,0.00015995,2]
[331647658,1720601538206,-459.89794311,0.00016254,2]
[331647659,1720601538227,-300.0,0.00016254,2]
[331647660,1720601538249,-300.0,0.00016254,2]
[331647661,1720601538273,-507.35891975,0.00016255,2]
[331647662,1720601538296,-318.60964915,0.00016255,2]
[331647663,1720601538317,-776.89936028,0.00016255,2]
[331647664,1720601538338,-474.27714899,0.00016255,2]
[331647665,1720601538360,-154.69833824,0.00016255,2]
[331647666,1720601538382,-4213.54564059,0.00016255,2]
[331647667,1720601566196,6266.38582075,0.00014998,2]
[331647668,1720601571540,182.01677146,0.00014999,2]
[331647669,1720601572135,516.64592996,0.00014999,2]
[331647670,1720601583403,286.97734619,0.00014999,2]
[331647671,1720601588530,5211.42806786,0.00014998,2]
[331647672,1720601592241,887.60997322,0.00014999,2]
[331647674,1720601613385,200.82807278,0.00014999,2]
[331647675,1720601673480,309.3349299,0.00014999,2]
[331647676,1720601674846,309.3349299,0.00014999,2]
[331647677,1720601683288,701.84,0.00010959,2]
[331647680,1720601704250,520.07,0.00010959,2]
[331647681,1720601730695,2729.46314623,0.00014999,2]
[331647683,1720601733496,165.14297844,0.00013283,2]
[331647684,1720601735332,160.03609292,0.00013283,2]
[331647687,1720601739357,2878.93215316,0.00014999,2]
[331647688,1720601743297,317.44910148,0.00014999,2]
[331647690,1720601745344,374.63942513,0.00013283,2]
[331647691,1720601745860,1400.72762355,0.00013283,2]
[331647692,1720601747058,5211.42806786,0.00014998,2]
[331647693,1720601747588,156.80969809,0.00013283,2]
[331647694,1720601749746,804.69654268,0.00013283,2]
[331647695,1720601765151,180.47511279,0.00014999,2]
[331647696,1720601768239,186.22896942,0.00013283,2]
[331647697,1720601779124,155.17733223,0.00014999,2]
[331647698,1720601780162,363.26206664,0.00014999,2]
[331647699,1720601794713,196.82523815,0.00014999,2]
[331647700,1720601796838,454.8056069,0.00014999,2]
[331647701,1720601807271,885.90879381,0.00014999,2]
[331647702,1720601808407,-324.55769,0.00015662,2]
[331647703,1720601808429,-156.27428673,0.00016,2]
[331647704,1720601808451,-1284.77184592,0.00016155,2]
[331647705,1720601808474,-300.0,0.00016254,2]
[331647706,1720601808495,-34951.80135124,0.00016255,2]